[Event "Latvijas 2022. gada jauniešu čempionāta fināls"]
[Site "Riga, Latvia"]
[Date "2022.06.14"]
[Round "4.18"]
[White "Jeronovics, Toms"]
[Black "Nazarovs, Daniils"]
[Result "1-0"]
[TimeControl "3600+30"]
[WhiteElo "1273"]
[BlackElo "1245"]

1. e4 {[%clk 01:00:58]} {[%emt 00:00:01]} c5 {[%clk 01:00:57]} {[%emt
00:00:04]} 2. Nc3 {[%clk 01:01:11]} {[%emt 00:00:17]} a6 {[%clk 01:01:21]}
{[%emt 00:00:06]} 3. Nf3 {[%clk 01:00:52]} {[%emt 00:00:49]} b5 {[%clk
01:01:40]} {[%emt 00:00:12]} 4. d4 {[%clk 01:00:50]} {[%emt 00:00:30]} cxd4
{[%clk 01:02:02]} {[%emt 00:00:09]} 5. Nxd4 {[%clk 01:00:29]} {[%emt 00:00:50]}
e6 {[%clk 01:02:19]} {[%emt 00:00:14]} 6. Bd3 {[%clk 00:59:56]} {[%emt
00:01:03]} Qc7 {[%clk 01:01:44]} {[%emt 00:01:06]} 7. O-O {[%clk 00:57:35]}
{[%emt 00:02:50]} Nc6 {[%clk 01:00:06]} {[%emt 00:02:07]} 8. Nxc6 {[%clk
00:56:26]} {[%emt 00:01:41]} dxc6 {[%clk 01:00:17]} {[%emt 00:00:19]} 9. Qe2
{[%clk 00:55:20]} {[%emt 00:01:35]} c5 {[%clk 00:57:12]} {[%emt 00:03:35]} 10.
e5 {[%clk 00:53:01]} {[%emt 00:02:48]} Bb7 {[%clk 00:56:57]} {[%emt 00:00:45]}
11. a4 {[%clk 00:49:27]} {[%emt 00:04:04]} b4 {[%clk 00:52:07]} {[%emt
00:05:21]} 12. Nd1 {[%clk 00:49:04]} {[%emt 00:00:52]} Ne7 {[%clk 00:51:23]}
{[%emt 00:01:15]} 13. Bf4 {[%clk 00:46:24]} {[%emt 00:03:08]} Nc6 {[%clk
00:49:18]} {[%emt 00:02:37]} 14. Ne3 {[%clk 00:42:36]} {[%emt 00:04:17]} Be7
{[%clk 00:41:09]} {[%emt 00:08:39]} 15. Nc4 {[%clk 00:35:29]} {[%emt 00:07:38]}
Nd4 {[%clk 00:39:14]} {[%emt 00:02:25]} 16. Qg4 {[%clk 00:32:57]} {[%emt
00:02:57]} O-O-O {[%clk 00:38:30]} {[%emt 00:01:19]} 17. Rfe1 {[%clk 00:26:34]}
{[%emt 00:06:52]} h5 {[%clk 00:36:22]} {[%emt 00:02:39]} 18. Qh3 {[%clk
00:22:46]} {[%emt 00:04:14]} Rdg8 {[%clk 00:28:23]} {[%emt 00:08:34]} 19. Be4
{[%clk 00:17:27]} {[%emt 00:05:48]} g5 {[%clk 00:27:34]} {[%emt 00:01:19]} 20.
Nd6+ {[%clk 00:16:30]} {[%emt 00:01:27]} Bxd6 {[%clk 00:27:52]} {[%emt
00:00:12]} 21. exd6 {[%clk 00:16:54]} {[%emt 00:00:06]} Qd7 {[%clk 00:27:29]}
{[%emt 00:00:51]} 22. Be5 {[%clk 00:15:59]} {[%emt 00:01:27]} Rh6 {[%clk
00:22:50]} {[%emt 00:05:09]} 23. Bxb7+ {[%clk 00:14:28]} {[%emt 00:02:01]} Qxb7
{[%clk 00:22:24]} {[%emt 00:00:56]} 24. Qe3 {[%clk 00:14:16]} {[%emt 00:00:40]}
Qd5 {[%clk 00:21:57]} {[%emt 00:01:00]} 25. Rad1 {[%clk 00:13:21]} {[%emt
00:01:24]} Kd7 {[%clk 00:13:27]} {[%emt 00:09:00]} 26. Bxd4 {[%clk 00:13:03]}
{[%emt 00:00:48]} cxd4 {[%clk 00:13:50]} {[%emt 00:00:07]} 27. Rxd4 {[%clk
00:13:02]} {[%emt 00:00:31]} Qc5 {[%clk 00:13:05]} {[%emt 00:01:10]} 28. Qe4
{[%clk 00:12:25]} {[%emt 00:01:11]} Rb8 {[%clk 00:09:09]} {[%emt 00:04:27]} 29.
Rc4 {[%clk 00:11:15]} {[%emt 00:01:40]} Qd5 {[%clk 00:09:18]} {[%emt 00:00:21]}
30. b3 {[%clk 00:08:22]} {[%emt 00:03:23]} Qxe4 {[%clk 00:07:35]} {[%emt
00:02:13]} 31. Rexe4 {[%clk 00:08:42]} {[%emt 00:00:09]} e5 {[%clk 00:05:42]}
{[%emt 00:02:24]} 32. Rxe5 {[%clk 00:07:17]} {[%emt 00:01:54]} Rxd6 {[%clk
00:05:59]} {[%emt 00:00:14]} 33. Kf1 {[%clk 00:07:38]} {[%emt 00:00:08]} f6
{[%clk 00:06:05]} {[%emt 00:00:24]} 34. Ree4 {[%clk 00:07:55]} {[%emt
00:00:12]} a5 {[%clk 00:05:29]} {[%emt 00:01:09]} 35. Rc5 {[%clk 00:07:54]}
{[%emt 00:00:30]} Rd2 {[%clk 00:05:19]} {[%emt 00:00:39]} 36. Ke1 {[%clk
00:07:55]} {[%emt 00:00:28]} Rd6 {[%clk 00:05:20]} {[%emt 00:00:31]} 37. Rxa5
{[%clk 00:08:01]} {[%emt 00:00:24]} Rc8 {[%clk 00:05:27]} {[%emt 00:00:22]} 38.
Ra7+ {[%clk 00:07:54]} {[%emt 00:00:38]} Kd8 {[%clk 00:05:45]} {[%emt
00:00:12]} 39. Ree7 {[%clk 00:06:03]} {[%emt 00:02:20]} Rxc2 {[%clk 00:05:31]}
{[%emt 00:00:45]} 40. Rg7 {[%clk 00:06:25]} {[%emt 00:00:07]} Rc1+ {[%clk
00:05:29]} {[%emt 00:00:34]} 41. Ke2 {[%clk 00:06:46]} {[%emt 00:00:07]} Rc2+
{[%clk 00:05:10]} {[%emt 00:00:49]} 42. Ke3 {[%clk 00:07:01]} {[%emt 00:00:14]}
Rc3+ {[%clk 00:05:28]} {[%emt 00:00:14]} 43. Ke4 {[%clk 00:07:07]} {[%emt
00:00:22]} Re6+ {[%clk 00:02:18]} {[%emt 00:03:42]} 44. Kf5 {[%clk 00:07:19]}
{[%emt 00:00:17]} Re8 {[%clk 00:02:29]} {[%emt 00:00:20]} 45. Kxf6 {[%clk
00:07:24]} {[%emt 00:00:25]} Rc6+ {[%clk 00:01:52]} {[%emt 00:01:07]} 46. Kxg5
{[%clk 00:07:36]} {[%emt 00:00:18]} Re5+ {[%clk 00:00:34]} {[%emt 00:01:48]} 47.
Kh4 {[%clk 00:07:37]} {[%emt 00:00:27]} Re4+ {[%clk 00:00:48]} {[%emt
00:00:18]} 48. Kh3 {[%clk 00:07:23]} {[%emt 00:00:42]} Re8 {[%clk 00:00:36]}
{[%emt 00:00:43]} 49. Ra8+ {[%clk 00:07:30]} {[%emt 00:00:23]} Rc8 {[%clk
00:01:05]} {[%emt 00:00:02]} 50. Rxc8+ {[%clk 00:07:49]} {[%emt 00:00:11]} Kxc8
{[%clk 00:01:32]} {[%emt 00:00:03]} 51. Rf7 {[%clk 00:07:40]} {[%emt 00:00:37]}
Rd8 {[%clk 00:01:41]} {[%emt 00:00:23]} 52. Kh4 {[%clk 00:07:53]} {[%emt
00:00:16]} Rd3 {[%clk 00:02:00]} {[%emt 00:00:12]} 53. Rf3 {[%clk 00:08:17]}
{[%emt 00:00:05]} Rd5 {[%clk 00:02:22]} {[%emt 00:00:09]} 54. g4 {[%clk
00:08:07]} {[%emt 00:00:40]} hxg4 {[%clk 00:02:17]} {[%emt 00:00:35]} 55. Kxg4
{[%emt 00:00:23]} 1-0

[Event "Latvijas 2022. gada jauniešu čempionāta fināls"]
[Site "Riga, Latvia"]
[Date "2022.06.14"]
[Round "4.19"]
[White "Harlamovs, Daniils"]
[Black "Aleidzans, Vadims"]
[Result "1/2-1/2"]
[TimeControl "3600+30"]
[WhiteElo "1407"]
[BlackElo "1367"]

1. d4 {[%clk 01:00:58]} d5 {[%clk 01:00:55]} {[%emt 00:00:06]} 2. c4 {[%clk
01:01:24]} {[%emt 00:00:04]} e6 {[%clk 01:01:20]} {[%emt 00:00:05]} 3. Nc3
{[%clk 01:01:48]} {[%emt 00:00:05]} Nf6 {[%clk 01:01:46]} {[%emt 00:00:05]} 4.
Nf3 {[%clk 01:02:14]} {[%emt 00:00:04]} Be7 {[%clk 01:02:02]} {[%emt 00:00:14]}
5. Bf4 {[%clk 01:02:30]} {[%emt 00:00:13]} O-O {[%clk 01:02:25]} {[%emt
00:00:07]} 6. e3 {[%clk 01:02:55]} {[%emt 00:00:06]} c5 {[%clk 01:02:42]}
{[%emt 00:00:13]} 7. dxc5 {[%clk 01:00:39]} {[%emt 00:02:46]} Bxc5 {[%clk
01:03:05]} {[%emt 00:00:06]} 8. Be2 {[%clk 01:00:07]} {[%emt 00:01:02]} Nc6
{[%clk 00:56:57]} {[%emt 00:06:39]} 9. O-O {[%clk 00:56:13]} {[%emt 00:04:24]}
dxc4 {[%clk 00:56:47]} {[%emt 00:00:40]} 10. Bxc4 {[%clk 00:55:05]} {[%emt
00:01:37]} a6 {[%clk 00:56:37]} {[%emt 00:00:41]} 11. Qxd8 {[%clk 00:51:31]}
{[%emt 00:04:04]} Rxd8 {[%clk 00:56:57]} {[%emt 00:00:10]} 12. Rfd1 {[%clk
00:51:42]} {[%emt 00:00:18]} Re8 {[%clk 00:57:01]} {[%emt 00:00:26]} 13. Bd6
{[%clk 00:45:18]} {[%emt 00:06:54]} Bxd6 {[%clk 00:52:03]} {[%emt 00:05:28]} 14.
Rxd6 {[%clk 00:45:37]} {[%emt 00:00:11]} Ne7 {[%clk 00:52:15]} {[%emt
00:00:18]} 15. a4 {[%clk 00:36:50]} {[%emt 00:09:18]} Nf5 {[%clk 00:48:21]}
{[%emt 00:04:24]} 16. Rd2 {[%clk 00:36:09]} {[%emt 00:01:09]} b6 {[%clk
00:47:41]} {[%emt 00:01:11]} 17. Bd3 {[%clk 00:29:41]} {[%emt 00:06:58]} Ne7
{[%clk 00:46:49]} {[%emt 00:01:23]} 18. Rad1 {[%clk 00:27:40]} {[%emt
00:02:31]} Bb7 {[%clk 00:46:54]} {[%emt 00:00:24]} 19. e4 {[%clk 00:27:32]}
{[%emt 00:00:38]} Nc6 {[%clk 00:35:30]} {[%emt 00:11:54]} 20. e5 {[%clk
00:20:04]} {[%emt 00:07:58]} Nd5 {[%clk 00:35:12]} {[%emt 00:00:48]} 21. Be4
{[%clk 00:18:27]} {[%emt 00:02:05]} Nce7 {[%clk 00:32:23]} {[%emt 00:03:22]} 22.
Bb1 {[%clk 00:12:01]} {[%emt 00:06:56]} Rac8 {[%clk 00:32:08]} {[%emt
00:00:44]} 23. Ne4 {[%clk 00:11:55]} {[%emt 00:00:36]} Red8 {[%clk 00:30:47]}
{[%emt 00:01:52]} 24. Nd6 {[%clk 00:12:03]} {[%emt 00:00:22]} Rc7 {[%clk
00:31:04]} {[%emt 00:00:12]} 25. Ng5 {[%clk 00:10:46]} {[%emt 00:01:45]} Ng6
{[%clk 00:30:54]} {[%emt 00:00:43]} 26. Bxg6 {[%clk 00:10:23]} {[%emt
00:00:53]} hxg6 {[%clk 00:31:16]} {[%emt 00:00:07]} 27. Nge4 {[%clk 00:09:41]}
{[%emt 00:01:12]} Ne7 {[%clk 00:27:21]} {[%emt 00:04:25]} 28. f3 {[%clk
00:08:17]} {[%emt 00:01:54]} Bxe4 {[%clk 00:22:42]} {[%emt 00:05:10]} 29. Nxe4
{[%clk 00:04:53]} {[%emt 00:03:54]} Rxd2 {[%clk 00:22:39]} {[%emt 00:00:33]} 30.
Rxd2 {[%clk 00:05:11]} {[%emt 00:00:12]} Nd5 {[%clk 00:22:57]} {[%emt
00:00:09]} 31. Kf2 {[%emt 00:02:49]} 1/2-1/2

[Event "Latvijas 2022. gada jauniešu čempionāta fināls"]
[Site "Riga, Latvia"]
[Date "2022.06.14"]
[Round "4.20"]
[White "Germanovs, Georgijs"]
[Black "Freibergs, Filips"]
[Result "1-0"]
[TimeControl "3600+30"]
[WhiteElo "1750"]
[BlackElo "1250"]

1. d4 {[%clk 00:51:43]} {[%emt 00:09:16]} d5 {[%clk 01:00:55]} {[%emt
00:00:05]} 2. Nf3 {[%clk 00:51:33]} {[%emt 00:00:41]} Bf5 {[%clk 01:00:54]}
{[%emt 00:00:30]} 3. Bf4 {[%clk 00:51:55]} {[%emt 00:00:08]} h6 {[%clk
01:00:05]} {[%emt 00:01:20]} 4. e3 {[%clk 00:51:55]} {[%emt 00:00:30]} Nf6
{[%clk 01:00:09]} {[%emt 00:00:25]} 5. c4 {[%clk 00:52:01]} {[%emt 00:00:24]}
e6 {[%clk 01:00:21]} {[%emt 00:00:19]} 6. Nc3 {[%clk 00:52:10]} {[%emt
00:00:20]} c6 {[%clk 00:57:43]} {[%emt 00:03:08]} 7. Qb3 {[%clk 00:52:18]}
{[%emt 00:00:22]} b6 {[%clk 00:55:05]} {[%emt 00:03:09]} 8. Ne5 {[%clk
00:50:17]} {[%emt 00:02:31]} Nh5 {[%clk 00:53:58]} {[%emt 00:01:37]} 9. g4
{[%clk 00:49:42]} {[%emt 00:01:04]} Be4 {[%clk 00:35:43]} {[%emt 00:18:45]} 10.
Nxe4 {[%clk 00:50:04]} {[%emt 00:00:08]} Nxf4 {[%clk 00:36:04]} {[%emt
00:00:10]} 11. Nc3 {[%clk 00:50:26]} {[%emt 00:00:08]} dxc4 {[%clk 00:36:09]}
{[%emt 00:00:26]} 12. Qxc4 {[%clk 00:50:24]} {[%emt 00:00:31]} b5 {[%clk
00:36:32]} {[%emt 00:00:06]} 13. Nxb5 {[%clk 00:50:36]} {[%emt 00:00:18]} Nd5
{[%clk 00:33:43]} {[%emt 00:03:19]} 14. Nxc6 {[%clk 00:50:46]} {[%emt
00:00:21]} Qb6 {[%clk 00:31:38]} {[%emt 00:02:35]} 15. Ne5 {[%clk 00:50:37]}
{[%emt 00:00:38]} a6 {[%clk 00:30:34]} {[%emt 00:01:35]} 16. e4 {[%clk
00:49:18]} {[%emt 00:01:49]} Nf6 {[%clk 00:26:37]} {[%emt 00:04:26]} 17. Nc7+
{[%clk 00:48:36]} {[%emt 00:01:12]} Kd8 {[%clk 00:21:54]} {[%emt 00:05:09]} 18.
Nxa8 {[%clk 00:48:45]} {[%emt 00:00:26]} Qxb2 {[%clk 00:21:47]} {[%emt
00:00:36]} 19. Qc7+ {[%clk 00:48:54]} {[%emt 00:00:21]} Ke8 {[%clk 00:22:14]}
{[%emt 00:00:03]} 20. Qxf7+ {[%clk 00:48:50]} {[%emt 00:00:34]} Kd8 {[%clk
00:22:42]} 21. Qc7+ {[%clk 00:47:36]} {[%emt 00:01:45]} Ke8 {[%clk 00:23:10]}
{[%emt 00:00:02]} 22. Bb5+ {[%clk 00:46:38]} {[%emt 00:01:28]} axb5 {[%clk
00:23:22]} {[%emt 00:00:18]} 23. Qxb8+ {[%clk 00:46:57]} {[%emt 00:00:12]} Ke7
{[%clk 00:23:35]} {[%emt 00:00:17]} 24. Qc7+ {[%clk 00:47:18]} {[%emt
00:00:08]} Ke8 {[%clk 00:23:17]} {[%emt 00:00:48]} 25. Qf7+ {[%clk 00:47:41]}
{[%emt 00:00:07]} Kd8 {[%clk 00:23:42]} {[%emt 00:00:05]} 26. Nc6+ {[%clk
00:48:04]} {[%emt 00:00:08]} Kc8 {[%clk 00:24:04]} {[%emt 00:00:07]} 27. Qc7#
{[%emt 00:00:38]} 1-0

[Event "Latvijas 2022. gada jauniešu čempionāta fināls"]
[Site "Riga, Latvia"]
[Date "2022.06.14"]
[Round "4.21"]
[White "Freibergs, Andrejs"]
[Black "Springis, Jevgenijs"]
[Result "0-1"]
[TimeControl "3600+30"]
[WhiteElo "1526"]
[BlackElo "1975"]

1. d4 {[%clk 00:43:51]} {[%emt 00:17:08]} Nf6 {[%clk 01:00:51]} {[%emt
00:00:09]} 2. c4 {[%clk 00:44:02]} {[%emt 00:00:19]} g6 {[%clk 01:01:14]}
{[%emt 00:00:07]} 3. Nc3 {[%clk 00:44:24]} {[%emt 00:00:09]} Bg7 {[%clk
01:01:37]} {[%emt 00:00:06]} 4. e4 {[%clk 00:44:38]} {[%emt 00:00:17]} d6
{[%clk 01:02:00]} {[%emt 00:00:07]} 5. Be2 {[%clk 00:43:25]} {[%emt 00:01:43]}
O-O {[%clk 01:02:13]} {[%emt 00:00:16]} 6. Be3 {[%clk 00:42:45]} {[%emt
00:01:09]} c5 {[%clk 01:02:38]} {[%emt 00:00:06]} 7. d5 {[%clk 00:41:29]}
{[%emt 00:01:47]} e6 {[%clk 01:02:57]} {[%emt 00:00:11]} 8. h4 {[%clk
00:38:25]} {[%emt 00:03:34]} exd5 {[%clk 01:02:54]} {[%emt 00:00:32]} 9. exd5
{[%clk 00:38:34]} {[%emt 00:00:21]} h5 {[%clk 01:02:54]} {[%emt 00:00:31]} 10.
Qd2 {[%clk 00:37:10]} {[%emt 00:01:54]} Re8 {[%clk 00:57:10]} {[%emt 00:06:14]}
11. Nh3 {[%clk 00:35:34]} {[%emt 00:02:05]} Nbd7 {[%clk 00:53:39]} {[%emt
00:04:02]} 12. Ng5 {[%clk 00:32:01]} {[%emt 00:04:03]} Ne5 {[%clk 00:52:40]}
{[%emt 00:01:29]} 13. O-O {[%clk 00:27:05]} {[%emt 00:05:26]} Bf5 {[%clk
00:47:58]} {[%emt 00:05:11]} 14. f3 {[%clk 00:26:43]} {[%emt 00:00:53]} Qd7
{[%clk 00:43:33]} {[%emt 00:04:55]} 15. Rac1 {[%clk 00:22:24]} {[%emt
00:04:49]} Re7 {[%clk 00:41:18]} {[%emt 00:02:45]} 16. Kh1 {[%clk 00:19:59]}
{[%emt 00:02:55]} Rae8 {[%clk 00:41:10]} {[%emt 00:00:37]} 17. Nce4 {[%clk
00:18:11]} {[%emt 00:02:18]} Bxe4 {[%clk 00:40:13]} {[%emt 00:01:28]} 18. fxe4
{[%clk 00:18:18]} {[%emt 00:00:23]} Neg4 {[%clk 00:39:38]} {[%emt 00:01:04]} 19.
Bf3 {[%clk 00:17:46]} {[%emt 00:01:02]} Bh6 {[%clk 00:38:40]} {[%emt 00:01:29]}
20. Rce1 {[%clk 00:13:46]} {[%emt 00:04:30]} Bxg5 {[%clk 00:33:53]} {[%emt
00:05:16]} 21. Bxg5 {[%clk 00:12:57]} {[%emt 00:01:19]} Nxe4 {[%clk 00:34:11]}
{[%emt 00:00:13]} 22. Rxe4 {[%clk 00:12:26]} {[%emt 00:01:01]} Rxe4 {[%clk
00:34:32]} {[%emt 00:00:09]} 23. Bxe4 {[%clk 00:09:29]} {[%emt 00:03:27]} Rxe4
{[%clk 00:34:56]} {[%emt 00:00:06]} 24. b3 {[%clk 00:07:50]} {[%emt 00:02:10]}
Qe8 {[%clk 00:34:22]} {[%emt 00:01:01]} 25. Qc3 {[%clk 00:06:56]} {[%emt
00:01:26]} Re2 {[%clk 00:32:32]} {[%emt 00:02:20]} 26. Qf3 {[%clk 00:06:33]}
{[%emt 00:00:53]} f5 {[%clk 00:31:22]} {[%emt 00:01:40]} 27. Bf4 {[%clk
00:05:28]} {[%emt 00:01:34]} Qe7 {[%clk 00:26:45]} {[%emt 00:05:07]} 28. Qg3
{[%clk 00:05:44]} {[%emt 00:00:15]} Qf6 {[%clk 00:24:10]} {[%emt 00:03:05]} 29.
Bxd6 {[%clk 00:04:33]} {[%emt 00:01:41]} Re3 {[%clk 00:24:31]} {[%emt
00:00:09]} 30. Rd1 {[%clk 00:03:21]} {[%emt 00:01:41]} Rxg3 {[%clk 00:23:55]}
{[%emt 00:01:06]} 31. Bxg3 {[%clk 00:03:48]} {[%emt 00:00:03]} Ne3 {[%clk
00:23:02]} {[%emt 00:01:21]} 32. Re1 {[%clk 00:03:34]} {[%emt 00:00:47]} f4
{[%clk 00:23:24]} {[%emt 00:00:07]} 33. Bf2 {[%clk 00:03:36]} {[%emt 00:00:28]}
Qe5 {[%clk 00:23:47]} {[%emt 00:00:06]} 34. g3 {[%clk 00:03:30]} {[%emt
00:00:37]} Qe4+ {[%clk 00:24:11]} {[%emt 00:00:07]} 0-1

[Event "Latvijas 2022. gada jauniešu čempionāta fināls"]
[Site "Riga, Latvia"]
[Date "2022.06.14"]
[Round "4.22"]
[White "Krasilnikovs, Aleksandrs"]
[Black "Petrovs, Renars"]
[Result "0-1"]
[TimeControl "3600+30"]
[WhiteElo "1339"]
[BlackElo "1327"]

1. d4 {[%clk 01:00:56]} {[%emt 00:00:03]} d5 {[%clk 01:00:55]} {[%emt
00:00:05]} 2. Nf3 {[%clk 01:01:20]} {[%emt 00:00:06]} Nf6 {[%clk 01:01:19]}
{[%emt 00:00:06]} 3. g3 {[%clk 01:01:45]} {[%emt 00:00:05]} Bf5 {[%clk
01:00:58]} {[%emt 00:00:52]} 4. Bg2 {[%clk 01:01:58]} {[%emt 00:00:16]} e6
{[%clk 01:01:19]} {[%emt 00:00:10]} 5. O-O {[%clk 01:02:15]} {[%emt 00:00:11]}
Be7 {[%clk 00:59:35]} {[%emt 00:02:16]} 6. c4 {[%clk 01:02:30]} {[%emt
00:00:15]} c6 {[%clk 00:59:49]} {[%emt 00:00:17]} 7. Nc3 {[%clk 01:02:42]}
{[%emt 00:00:17]} a6 {[%clk 00:58:23]} {[%emt 00:01:57]} 8. a4 {[%clk
01:02:51]} {[%emt 00:00:20]} dxc4 {[%clk 00:56:59]} {[%emt 00:01:55]} 9. Ne5
{[%clk 01:03:09]} {[%emt 00:00:11]} O-O {[%clk 00:56:00]} {[%emt 00:01:29]} 10.
Nxc4 {[%clk 01:03:27]} {[%emt 00:00:11]} h6 {[%clk 00:55:50]} {[%emt 00:00:41]}
11. e4 {[%clk 00:59:07]} {[%emt 00:04:49]} Bh7 {[%clk 00:56:03]} {[%emt
00:00:18]} 12. Be3 {[%clk 00:58:50]} {[%emt 00:00:46]} a5 {[%clk 00:54:50]}
{[%emt 00:01:44]} 13. d5 {[%clk 00:54:38]} {[%emt 00:04:41]} exd5 {[%clk
00:53:48]} {[%emt 00:01:33]} 14. exd5 {[%clk 00:54:27]} {[%emt 00:00:41]} Nxd5
{[%clk 00:53:51]} {[%emt 00:00:27]} 15. Nxd5 {[%clk 00:54:21]} {[%emt
00:00:35]} cxd5 {[%clk 00:54:13]} {[%emt 00:00:09]} 16. Bxd5 {[%clk 00:54:22]}
{[%emt 00:00:28]} Nc6 {[%clk 00:49:09]} {[%emt 00:05:35]} 17. Qf3 {[%clk
00:51:20]} {[%emt 00:03:31]} Ra6 {[%clk 00:47:43]} {[%emt 00:01:58]} 18. Rfd1
{[%clk 00:50:11]} {[%emt 00:01:38]} Qe8 {[%clk 00:45:13]} {[%emt 00:03:00]} 19.
Qg4 {[%clk 00:49:37]} {[%emt 00:01:03]} Kh8 {[%clk 00:44:37]} {[%emt 00:01:06]}
20. f4 {[%clk 00:38:31]} {[%emt 00:11:37]} Bb4 {[%clk 00:40:32]} {[%emt
00:04:33]} 21. f5 {[%clk 00:34:35]} {[%emt 00:04:27]} f6 {[%clk 00:36:50]}
{[%emt 00:04:12]} 22. Be6 {[%clk 00:33:53]} {[%emt 00:01:12]} Nd8 {[%clk
00:35:47]} {[%emt 00:01:30]} 23. Bd7 {[%clk 00:18:31]} {[%emt 00:15:55]} Qf7
{[%clk 00:33:21]} {[%emt 00:02:55]} 24. Bb6 {[%clk 00:18:12]} {[%emt 00:00:49]}
Rxb6 {[%clk 00:30:55]} {[%emt 00:02:57]} 25. Nxb6 {[%clk 00:16:27]} {[%emt
00:02:14]} Bc5+ {[%clk 00:31:19]} {[%emt 00:00:07]} 26. Kg2 {[%clk 00:16:33]}
{[%emt 00:00:23]} Bxb6 {[%clk 00:31:34]} {[%emt 00:00:16]} 27. Be6 {[%clk
00:15:36]} {[%emt 00:01:27]} Nxe6 {[%clk 00:30:17]} {[%emt 00:01:48]} 28. fxe6
{[%clk 00:16:02]} {[%emt 00:00:02]} Qc7 {[%clk 00:28:53]} {[%emt 00:01:53]} 29.
Rac1 {[%clk 00:15:36]} {[%emt 00:00:58]} Qe5 {[%clk 00:28:56]} {[%emt
00:00:26]} 30. Re1 {[%clk 00:06:57]} {[%emt 00:09:10]} Qd5+ {[%clk 00:22:32]}
{[%emt 00:06:54]} 31. Qf3 {[%clk 00:07:09]} {[%emt 00:00:18]} Qxf3+ {[%clk
00:19:44]} {[%emt 00:03:17]} 32. Kxf3 {[%clk 00:07:19]} {[%emt 00:00:19]} Re8
{[%clk 00:19:16]} {[%emt 00:00:59]} 33. Rcd1 {[%clk 00:06:46]} {[%emt
00:01:01]} Bc5 {[%clk 00:17:55]} {[%emt 00:01:54]} 34. g4 {[%clk 00:05:22]}
{[%emt 00:01:53]} Bg8 {[%clk 00:17:26]} {[%emt 00:00:59]} 35. e7 {[%clk
00:03:52]} {[%emt 00:02:00]} Rxe7 {[%clk 00:17:37]} {[%emt 00:00:20]} 36. Rxe7
{[%clk 00:04:19]} {[%emt 00:00:03]} Bxe7 {[%clk 00:18:02]} {[%emt 00:00:05]} 37.
Rd7 {[%clk 00:04:34]} {[%emt 00:00:14]} Bc5 {[%clk 00:18:23]} {[%emt 00:00:09]}
38. Kg3 {[%clk 00:04:12]} {[%emt 00:00:53]} b6 {[%clk 00:18:44]} {[%emt
00:00:09]} 39. Rd3 {[%clk 00:04:16]} {[%emt 00:00:25]} Kh7 {[%clk 00:18:43]}
{[%emt 00:00:31]} 40. h4 {[%clk 00:04:27]} {[%emt 00:00:19]} h5 {[%clk
00:18:21]} {[%emt 00:00:53]} 41. g5 {[%clk 00:04:05]} {[%emt 00:00:51]} Kg6
{[%clk 00:18:29]} {[%emt 00:00:23]} 42. gxf6 {[%clk 00:03:54]} {[%emt
00:00:40]} Kxf6 {[%clk 00:18:01]} {[%emt 00:00:59]} 43. b3 {[%clk 00:03:49]}
{[%emt 00:00:34]} Ke5 {[%clk 00:18:02]} {[%emt 00:00:29]} 44. Kg2 {[%clk
00:03:07]} {[%emt 00:01:11]} Bd5+ {[%clk 00:18:07]} {[%emt 00:00:27]} 45. Kh2
{[%clk 00:03:11]} {[%emt 00:00:23]} Ke4 {[%clk 00:18:27]} {[%emt 00:00:12]} 46.
Rd1 {[%clk 00:01:10]} {[%emt 00:02:29]} Bxb3 {[%clk 00:18:49]} {[%emt
00:00:11]} 47. Re1+ {[%clk 00:01:34]} {[%emt 00:00:05]} Kd3 {[%clk 00:19:11]}
{[%emt 00:00:08]} 48. Rf1 {[%clk 00:01:49]} {[%emt 00:00:14]} Bxa4 {[%clk
00:19:32]} {[%emt 00:00:11]} 49. Rf3+ {[%clk 00:02:16]} {[%emt 00:00:02]} Kc4
{[%clk 00:19:49]} {[%emt 00:00:13]} 50. Rf4+ {[%clk 00:02:25]} {[%emt
00:00:20]} Kb3 {[%clk 00:20:00]} {[%emt 00:00:18]} 51. Rf3+ {[%clk 00:02:49]}
{[%emt 00:00:09]} Kb2 {[%clk 00:20:21]} {[%emt 00:00:08]} 52. Rf5 {[%clk
00:02:46]} {[%emt 00:00:33]} Bd1 {[%clk 00:20:33]} {[%emt 00:00:18]} 53. Rg5
{[%clk 00:03:02]} {[%emt 00:00:13]} a4 {[%clk 00:20:44]} {[%emt 00:00:21]} 54.
Rxg7 {[%clk 00:03:20]} {[%emt 00:00:11]} a3 {[%clk 00:21:04]} {[%emt 00:00:11]}
55. Rg2+ {[%clk 00:03:46]} {[%emt 00:00:04]} Bc2 {[%emt 00:01:15]} 0-1